bitfinex/quotes_BTCUSD_20250414
["timestamp","ask_amount","ask_price","bid_price","bid_amount"]
[1744602285668,0.00172216,84619.0,84618.0,1.2231626]
[1744602285873,0.00172216,84619.0,84618.0,1.2281626]
[1744602286393,1.6e-07,84619.0,84618.0,1.3236626]
[1744602289955,0.0008446,84634.0,84633.0,0.35554085]
[1744602290129,0.0477,84663.0,84652.0,0.189009]
[1744602290329,0.00098338,84653.0,84652.0,0.189009]
[1744602290508,0.00098338,84653.0,84652.0,0.21211193]
[1744602291979,0.23768938,84653.0,84652.0,0.02410293]
[1744602292182,0.23868938,84653.0,84652.0,0.02410293]
[1744602292374,0.23868938,84653.0,84652.0,0.001]
[1744602292761,0.23868938,84653.0,84652.0,0.02023401]
[1744602293125,0.23868938,84653.0,84631.0,0.20087]
[1744602293126,0.189073,84624.0,84617.0,0.189085]
[1744602293260,0.011816,84629.0,84619.0,0.02128131]
[1744602293261,0.0355,84623.0,84619.0,0.02128131]
[1744602293459,0.047317,84623.0,84620.0,0.01924043]
[1744602293647,0.0355,84623.0,84620.0,0.189079]
[1744602293854,0.0355,84623.0,84621.0,0.0193126]
[1744602294662,0.03563913,84623.0,84621.0,0.0193126]
[1744602294904,0.22471313,84623.0,84621.0,0.0193126]
[1744602295102,0.03563913,84623.0,84621.0,0.02202186]
[1744602295315,0.03563913,84623.0,84622.0,0.0193126]
[1744602295765,0.03663913,84623.0,84622.0,0.2083886]
[1744602295938,0.00113913,84623.0,84622.0,0.2083886]
[1744602296339,0.00013913,84623.0,84622.0,0.2083886]
[1744602296535,0.00013913,84623.0,84622.0,0.22664823]
[1744602296740,0.00113913,84623.0,84622.0,0.22664823]
[1744602297501,0.00113913,84623.0,84622.0,0.2083886]
[1744602300315,0.00113913,84623.0,84622.0,0.0193126]
[1744602300472,0.00113913,84623.0,84620.0,0.200895]
[1744602300685,0.19021313,84623.0,84621.0,0.01936943]
[1744602301036,0.00113913,84623.0,84618.0,0.189085]
[1744602301229,0.00113913,84623.0,84621.0,0.189078]
[1744602301805,0.00113913,84623.0,84622.0,0.0193796]
[1744602302005,0.00013913,84623.0,84622.0,0.0193796]
[1744602302206,0.00113913,84623.0,84622.0,0.0193796]
[1744602303099,0.00013913,84623.0,84622.0,0.0193796]
[1744602303514,0.011817,84617.0,84613.0,0.011818]
[1744602303727,0.011817,84617.0,84614.0,0.01947786]
[1744602304062,0.011817,84617.0,84614.0,0.011818]
[1744602304233,0.011817,84617.0,84615.0,0.01946636]
[1744602304840,0.011817,84622.0,84615.0,0.0580497]
[1744602305083,0.01295613,84623.0,84620.0,0.011817]
[1744602305290,0.011817,84619.0,84614.0,0.201911]
[1744602305495,0.011817,84621.0,84616.0,0.011818]
[1744602305887,0.200895,84621.0,84616.0,0.011818]
[1744602306089,0.001,84617.0,84616.0,0.011818]
[1744602306292,0.20103113,84623.0,84618.0,0.011817]
[1744602306721,0.001,84621.0,84619.0,0.20856125]
[1744602306875,0.00013913,84623.0,84622.0,0.189076]
[1744602307087,0.00013913,84623.0,84622.0,0.2085574]
[1744602308124,0.00013913,84623.0,84622.0,0.32939894]
[1744602308702,0.00013913,84623.0,84622.0,0.0194814]
[1744602309382,0.00113913,84623.0,84622.0,0.0194814]
[1744602309777,0.00213913,84623.0,84622.0,0.0194814]
[1744602310104,0.011817,84620.0,84615.0,0.200909]
[1744602310300,0.011817,84620.0,84616.0,0.14031435]
[1744602310700,0.011817,84619.0,84616.0,0.01947281]
[1744602310940,0.011817,84620.0,84616.0,0.011818]
[1744602311143,0.189081,84620.0,84616.0,0.011818]
[1744602311396,0.18858412,84620.0,84617.0,0.01947281]
[1744602311880,0.011817,84621.0,84617.0,0.03128981]
[1744602312377,0.001,84620.0,84617.0,0.03128981]
[1744602312617,0.011817,84621.0,84617.0,0.03128981]
[1744602313038,0.001,84620.0,84617.0,0.03128981]
[1744602313714,0.011817,84620.0,84617.0,0.02047281]
[1744602314808,0.189085,84618.0,84617.0,0.02047281]
[1744602315013,0.238185,84618.0,84617.0,0.02047281]
[1744602315211,0.578185,84618.0,84617.0,0.001]
[1744602316297,0.200954,84596.0,84589.0,0.011821]
[1744602316513,0.011821,84594.0,84592.0,0.01953868]
[1744602316722,0.18914,84593.0,84587.0,0.0004218]
[1744602316941,0.18914,84593.0,84587.0,0.0122438]
[1744602317100,0.18914,84593.0,84589.0,0.011821]
[1744602317304,0.18914,84593.0,84587.0,0.0122438]
[1744602317502,0.18914,84593.0,84591.0,0.00246396]
[1744602317928,0.18914,84593.0,84592.0,0.01960959]
[1744602318130,0.18914,84593.0,84591.0,0.00246396]
[1744602318343,0.18914,84593.0,84592.0,0.01960529]
[1744602319142,0.18914,84593.0,84591.0,0.00246396]
[1744602319543,0.19214,84593.0,84591.0,0.00246396]
[1744602320148,0.18914,84593.0,84591.0,0.00246396]
[1744602320478,0.003,84593.0,84591.0,0.00246396]
[1744602320681,0.003,84593.0,84592.0,0.04116097]
[1744602321832,0.003,84593.0,84592.0,0.16200251]
[1744602322046,0.1508,84607.0,84605.0,0.200931]
[1744602322221,0.1508,84609.0,84608.0,0.011819]
[1744602322429,0.1508,84617.0,84609.0,0.189105]
[1744602322651,0.059514,84641.0,84632.0,0.011815]
[1744602322772,0.1508,84635.0,84633.0,0.189051]
[1744602322980,0.011814,84644.0,84640.0,0.011814]
[1744602323171,0.011814,84642.0,84637.0,0.200857]
[1744602323402,0.011814,84642.0,84641.0,0.01961437]
[1744602323600,0.200848,84641.0,84638.0,0.02156858]
[1744602323957,0.1508,84640.0,84638.0,0.02156858]
[1744602325466,0.1508,84640.0,84635.0,0.189046]
[1744602325467,0.011814,84639.0,84635.0,0.189046]
[1744602325643,0.011814,84639.0,84638.0,0.001]
[1744602325962,0.165614,84640.0,84636.0,0.011815]
[1744602326097,0.1538,84640.0,84636.0,0.011815]
[1744602326300,0.006,84640.0,84639.0,0.189038]
[1744602326501,0.003,84640.0,84639.0,0.189038]
[1744602328118,0.00013916,84641.0,84639.0,0.30987954]
[1744602328326,0.00013916,84641.0,84640.0,0.12084154]
[1744602329100,0.00013916,84641.0,84640.0,0.16664154]
[1744602329504,0.00313916,84641.0,84640.0,0.2279381]
[1744602329917,0.00013916,84641.0,84640.0,0.23030057]
[1744602330131,0.00313916,84641.0,84640.0,0.23030057]
[1744602330547,0.00313916,84641.0,84640.0,0.23768184]
[1744602330893,0.00313916,84641.0,84640.0,0.66856022]
[1744602331345,0.00313916,84641.0,84640.0,0.65401937]
[1744602331978,0.00313916,84641.0,84640.0,0.65701937]
[1744602332179,0.00013916,84641.0,84640.0,0.65701937]
[1744602332478,0.00013916,84641.0,84640.0,0.65401937]
[1744602332680,0.00013916,84641.0,84640.0,0.65501937]
[1744602332988,0.00013916,84641.0,84640.0,0.65601937]
[1744602333346,0.00013916,84641.0,84640.0,0.6476381]
[1744602333769,0.00013916,84641.0,84640.0,0.6506381]
[1744602334536,0.00013916,84641.0,84640.0,0.2309381]
[1744602334935,0.00013916,84641.0,84640.0,0.2279381]
[1744602335367,0.00013916,84641.0,84640.0,0.2299381]
[1744602335753,0.00013916,84641.0,84640.0,0.2279381]
[1744602336156,0.00013916,84641.0,84640.0,0.2309381]
[1744602336356,0.00013916,84641.0,84640.0,0.2319381]
[1744602336708,0.00013916,84641.0,84640.0,0.25553108]
[1744602336919,0.00013916,84641.0,84640.0,0.25853108]
[1744602338797,0.00013916,84641.0,84640.0,0.25114995]
[1744602341075,0.00013916,84641.0,84640.0,0.24814995]
[1744602341742,0.00013916,84641.0,84640.0,0.24714995]
[1744602341904,0.00013916,84641.0,84640.0,0.24914995]
[1744602343884,0.00013916,84641.0,84640.0,0.19954995]
[1744602344056,0.00013916,84641.0,84640.0,0.19754995]
[1744602344396,0.00013916,84641.0,84640.0,0.14305339]
[1744602345037,0.18917216,84641.0,84640.0,0.01921185]
[1744602345243,0.18917216,84641.0,84640.0,0.02121185]
[1744602345418,0.19532775,84641.0,84640.0,0.002]
[1744602345623,0.19632775,84641.0,84640.0,0.002]
[1744602345928,0.011815,84636.0,84633.0,0.011815]
[1744602346262,0.011815,84636.0,84634.0,0.01930381]
[1744602346263,0.200862,84635.0,84634.0,0.01930381]
[1744602346656,0.011816,84629.0,84625.0,0.011816]
[1744602347047,0.011816,84629.0,84626.0,0.01930503]
[1744602347678,0.200878,84629.0,84626.0,0.01930503]
[1744602347827,0.189062,84628.0,84626.0,0.01930503]
[1744602348029,0.189077,84622.0,84616.0,0.011818]
[1744602348225,0.011817,84621.0,84618.0,0.011817]
[1744602348439,0.200888,84624.0,84619.0,0.200899]
[1744602348623,0.200888,84624.0,84620.0,0.011817]
[1744602348933,0.200883,84627.0,84621.0,0.22020406]
[1744602349294,0.011816,84627.0,84623.0,0.189073]
[1744602349573,0.011815,84635.0,84631.0,0.200871]
[1744602349772,0.011815,84635.0,84631.0,0.011816]
[1744602350068,0.011815,84635.0,84632.0,0.01935022]
[1744602350272,0.200862,84635.0,84632.0,0.01935022]
[1744602350710,0.011815,84637.0,84632.0,0.22021822]
[1744602350883,0.20086,84636.0,84632.0,0.03116522]
[1744602351083,0.011815,84637.0,84633.0,0.011815]
[1744602351289,0.416499,84640.0,84634.0,0.01942699]
[1744602351490,0.00013916,84641.0,84634.0,0.01942699]
[1744602351491,0.00013916,84641.0,84639.0,0.189038]
[1744602351683,0.00013916,84641.0,84640.0,0.01941578]
[1744602352673,0.00313916,84641.0,84640.0,0.01941578]
[1744602352854,0.00013916,84641.0,84640.0,0.01941578]
[1744602353777,0.00313916,84641.0,84640.0,0.01941578]
[1744602354799,0.00313916,84641.0,84639.0,0.189035]
[1744602355124,0.00313916,84641.0,84640.0,0.01941256]
[1744602355345,0.01495316,84641.0,84638.0,0.18904]
[1744602355549,0.011814,84640.0,84639.0,0.01941041]
[1744602355735,0.011814,84640.0,84636.0,0.200857]
[1744602355962,0.01495316,84641.0,84637.0,0.22026326]
[1744602356166,0.01495316,84641.0,84637.0,0.01940826]
[1744602356295,0.011814,84640.0,84637.0,0.01940826]
[1744602356638,0.20085,84640.0,84637.0,0.01940826]
[1744602356837,0.011814,84640.0,84637.0,0.01940826]
[1744602357138,0.011814,84640.0,84638.0,0.01940826]
[1744602357384,0.00013916,84641.0,84638.0,0.02320853]
[1744602357531,0.003,84640.0,84639.0,0.01940826]
[1744602358961,0.00013916,84641.0,84639.0,0.20844426]
[1744602359117,0.003,84640.0,84639.0,0.20844426]
[1744602359311,0.003,84640.0,84639.0,0.03648122]
[1744602359522,0.00013916,84641.0,84640.0,0.189035]
[1744602359776,0.00013916,84641.0,84640.0,0.2084497]
[1744602360843,0.00313916,84641.0,84640.0,0.2084497]
[1744602361271,0.00313916,84641.0,84640.0,0.0194147]
[1744602361850,0.00313916,84641.0,84640.0,0.04262323]
[1744602362925,0.00313916,84641.0,84640.0,0.0194147]
[1744602364216,0.00313916,84641.0,84638.0,0.200855]
[1744602364428,0.00313916,84641.0,84640.0,0.0193901]
[1744602364631,0.23897216,84641.0,84639.0,0.01938796]
[1744602364979,0.189094,84614.0,84613.0,0.12084154]
[1744602365113,0.189082,84620.0,84616.0,0.011818]
[1744602365295,0.200899,84620.0,84617.0,0.01935657]
[1744602365930,0.200899,84620.0,84613.0,0.011818]
[1744602365931,0.1891,84611.0,84609.0,0.01204329]
[1744602366138,0.1891,84611.0,84605.0,0.011819]
[1744602366139,0.200918,84611.0,84605.0,0.011819]
[1744602366495,0.200918,84611.0,84606.0,0.01935979]
[1744602366496,0.200925,84609.0,84606.0,0.01935979]
[1744602367115,0.189109,84607.0,84606.0,0.01935979]
[1744602367474,0.189109,84607.0,84605.0,0.002]
[1744602367696,0.011819,84608.0,84605.0,0.002]
[1744602367852,0.162338,84612.0,84611.0,0.1891]
[1744602367853,0.15052,84612.0,84611.0,0.1891]
[1744602368258,0.15052,84612.0,84611.0,0.20850382]
[1744602370662,0.15052,84612.0,84611.0,0.20950382]
[1744602371783,0.15052,84612.0,84611.0,0.33034536]
[1744602372193,0.011817,84619.0,84615.0,0.011818]
[1744602372400,0.011817,84619.0,84616.0,0.03726646]
[1744602373266,0.189085,84618.0,84616.0,0.03726646]
[1744602374004,0.189085,84618.0,84616.0,0.01964327]
[1744602374412,0.34,84617.0,84616.0,0.01964327]
[1744602374606,0.189125,84600.0,84592.0,0.189143]
[1744602374758,0.189125,84600.0,84594.0,0.011821]
[1744602374957,0.189125,84600.0,84592.0,0.189143]
[1744602374958,0.189125,84600.0,84599.0,0.02009627]
[1744602375163,0.189125,84600.0,84599.0,0.00046396]
[1744602375943,0.15056,84606.0,84601.0,0.189121]
[1744602376143,0.15056,84606.0,84604.0,0.189114]
[1744602376358,0.15056,84606.0,84605.0,0.01961404]
[1744602376559,0.15056,84606.0,84605.0,0.14045558]
[1744602376993,0.007,84617.0,84614.0,0.011818]
[1744602377229,0.162177,84623.0,84621.0,0.189077]
[1744602377230,0.15036,84623.0,84621.0,0.189077]
[1744602377640,0.15036,84623.0,84622.0,0.0196238]
[1744602379034,1.21616,84629.0,84626.0,0.011816]
[1744602379142,0.15036,84628.0,84626.0,0.13265754]
[1744602379354,0.15036,84628.0,84627.0,0.01963454]
[1744602379566,0.15036,84628.0,84627.0,0.20869854]
[1744602380224,0.15049913,84628.0,84627.0,0.20869854]
[1744602381018,0.15049913,84628.0,84627.0,0.32954008]
[1744602381791,0.15549913,84628.0,84627.0,0.32954008]
[1744602382828,0.15549913,84628.0,84627.0,0.01963454]
[1744602383284,0.011816,84627.0,84623.0,0.011817]
[1744602383586,0.15549913,84628.0,84613.0,0.059418]
[1744602383785,0.011817,84621.0,84615.0,0.011818]
[1744602383926,0.15549913,84628.0,84623.0,0.011817]
[1744602384128,0.15549913,84628.0,84627.0,0.189064]
[1744602384385,0.15549913,84628.0,84627.0,0.30990554]
[1744602384720,0.15049913,84628.0,84627.0,0.30990554]
[1744602384846,0.15149913,84628.0,84627.0,0.30990554]
[1744602385051,0.15049913,84628.0,84627.0,0.30990554]
[1744602385472,0.15549913,84628.0,84627.0,0.30990554]
[1744602386900,0.00513913,84628.0,84627.0,0.35750554]
[1744602387430,0.00513913,84628.0,84627.0,0.40430554]
[1744602387557,0.00013913,84628.0,84627.0,0.40430554]
[1744602387965,0.00113913,84628.0,84627.0,0.40530554]
[1744602388263,0.00113913,84628.0,84627.0,0.41268805]
[1744602389318,0.00113913,84628.0,84627.0,0.31828805]
[1744602390704,0.00113913,84628.0,84627.0,0.00838251]
[1744602390912,0.00113913,84628.0,84627.0,0.001]
[1744602392385,0.00013913,84628.0,84627.0,0.001]
[1744602392584,0.51428067,84628.0,84627.0,0.001]
[1744602393159,0.34513913,84628.0,84627.0,0.001]
[1744602393389,0.011819,84609.0,84602.0,0.01182]
[1744602393561,0.011819,84608.0,84599.0,0.01182]
[1744602393768,0.011819,84608.0,84603.0,0.011819]
[1744602393963,0.15036,84611.0,84606.0,0.011819]
[1744602394187,0.15036,84611.0,84609.0,0.189103]
[1744602395354,0.15136,84611.0,84609.0,0.189103]
[1744602396940,0.15136,84611.0,84610.0,0.019518]
[1744602397057,0.34046,84611.0,84610.0,0.019518]
[1744602397253,0.011819,84605.0,84600.0,0.200945]
[1744602397458,0.189112,84606.0,84600.0,0.200945]
[1744602397459,0.011819,84606.0,84602.0,0.18912]
[1744602397670,0.011819,84607.0,84602.0,0.18912]
[1744602397671,0.011819,84607.0,84603.0,0.011819]
[1744602397889,0.011819,84606.0,84603.0,0.0195137]
[1744602398100,0.011819,84608.0,84604.0,0.200934]
[1744602398308,0.011818,84610.0,84606.0,0.011819]
[1744602398491,0.011818,84610.0,84606.0,0.20093]
[1744602398702,0.011818,84610.0,84607.0,0.01954576]
[1744602398901,0.011818,84610.0,84607.0,0.03136476]
[1744602399099,0.011818,84610.0,84607.0,0.01954576]
[1744602399544,0.15036,84611.0,84608.0,0.011819]
[1744602399758,0.15036,84611.0,84607.0,0.01954576]
[1744602399759,0.162178,84611.0,84607.0,0.01954576]
[1744602399964,0.162178,84611.0,84609.0,0.01954791]
[1744602400133,0.162178,84611.0,84607.0,0.011819]
[1744602400664,0.011818,84610.0,84608.0,0.01954791]
[1744602401061,0.011819,84609.0,84606.0,0.20093]
[1744602401219,0.011819,84609.0,84605.0,0.200933]
[1744602401220,0.011819,84608.0,84605.0,0.200933]
[1744602401440,0.011819,84609.0,84606.0,0.011819]
[1744602402426,0.011819,84608.0,84604.0,0.011819]
[1744602402627,0.011819,84607.0,84603.0,0.189118]
[1744602402832,0.011819,84608.0,84604.0,0.200933]
[1744602403198,0.200907,84616.0,84609.0,0.189103]
[1744602403343,0.200913,84614.0,84609.0,0.200922]
[1744602403917,0.011818,84613.0,84607.0,0.011819]
[1744602404103,0.011818,84612.0,84609.0,0.011819]
[1744602404314,0.011818,84613.0,84609.0,0.200923]
[1744602404519,0.200913,84614.0,84610.0,0.011818]
[1744602404719,0.011818,84613.0,84609.0,0.200923]
[1744602405078,0.011818,84616.0,84611.0,0.1891]
[1744602405283,0.002,84612.0,84611.0,0.200918]
[1744602405488,0.011818,84614.0,84611.0,0.200918]
[1744602405690,0.011818,84614.0,84610.0,0.011818]
[1744602405901,0.002,84613.0,84610.0,0.011818]
[1744602406103,0.013818,84613.0,84609.0,0.200923]
[1744602406368,0.011819,84609.0,84604.0,0.296535]
[1744602406500,0.011819,84609.0,84602.0,0.189119]
[1744602406501,0.011819,84607.0,84603.0,0.200935]
[1744602406703,0.011819,84608.0,84604.0,0.011819]
[1744602406908,0.011819,84608.0,84603.0,0.2210289]
[1744602406909,0.200928,84608.0,84603.0,0.0319129]
[1744602407517,0.011819,84607.0,84603.0,0.2210289]
[1744602407721,0.200928,84608.0,84604.0,0.011819]
[1744602408260,0.200922,84610.0,84605.0,0.200933]
[1744602408458,0.011819,84608.0,84603.0,0.2210289]
[1744602408601,0.011819,84609.0,84603.0,0.2210289]
[1744602408807,0.011819,84609.0,84604.0,0.03300659]
[1744602409017,0.011819,84608.0,84604.0,0.22212059]
[1744602409297,0.011819,84608.0,84604.0,0.22112059]
[1744602410269,0.011818,84610.0,84606.0,0.189111]
[1744602411304,0.011819,84609.0,84605.0,0.011819]
[1744602411598,0.011819,84609.0,84606.0,0.01962536]
[1744602412102,0.011819,84609.0,84606.0,0.02062536]
[1744602412536,0.011819,84609.0,84606.0,0.01962536]
[1744602412683,0.011819,84609.0,84606.0,0.04071926]
[1744602412890,0.011817,84618.0,84613.0,0.189094]
[1744602413137,0.15036,84620.0,84617.0,0.011817]
[1744602413373,0.15036,84620.0,84619.0,0.189082]
[1744602413552,0.00013913,84628.0,84626.0,0.189067]
[1744602413864,0.00013913,84628.0,84626.0,0.20869914]
[1744602414162,0.00013913,84628.0,84626.0,0.32954068]
[1744602414302,0.00013913,84628.0,84627.0,0.17064154]
[1744602414508,0.00013913,84628.0,84627.0,0.17300457]
[1744602414850,0.00013913,84628.0,84627.0,0.19984643]
[1744602415235,0.00013913,84628.0,84627.0,0.1974834]
[1744602415696,0.00013913,84628.0,84627.0,0.1984834]
[1744602416099,0.00013913,84628.0,84627.0,0.20084643]
[1744602416580,0.00013913,84628.0,84627.0,0.1984834]
[1744602419862,0.00013913,84628.0,84627.0,0.20084643]
[1744602421741,0.00013913,84628.0,84627.0,1.021587]
[1744602421977,0.00013913,84628.0,84627.0,1.01922425]
[1744602422618,0.00013913,84628.0,84627.0,1.01822425]
[1744602422736,0.00013913,84628.0,84627.0,1.02022425]
[1744602423178,0.00013913,84628.0,84627.0,1.02222425]
[1744602423557,0.00013913,84628.0,84627.0,1.0076834]
[1744602424487,0.00013913,84628.0,84627.0,0.6676834]
[1744602425066,0.00013913,84628.0,84627.0,0.1516834]
[1744602425272,0.00013913,84628.0,84627.0,0.03084186]
[1744602425693,0.00013913,84628.0,84627.0,0.02345901]
[1744602426091,0.00013913,84628.0,84627.0,0.02145901]
[1744602426294,0.00013913,84628.0,84627.0,0.02784186]
[1744602427484,0.00013913,84628.0,84627.0,0.02684186]
[1744602427935,0.00013913,84628.0,84627.0,0.02784186]
[1744602429636,0.00013913,84628.0,84627.0,0.02045901]
[1744602429863,0.00013913,84628.0,84627.0,0.001]
[1744602430736,0.011817,84618.0,84615.0,0.011818]
[1744602430939,0.011818,84614.0,84613.0,0.00738285]
[1744602431348,0.161977,84618.0,84599.0,0.00738285]
[1744602431349,0.011819,84603.0,84599.0,0.00738285]
[1744602431549,0.01182,84602.0,84599.0,0.00738285]
[1744602431757,0.189123,84601.0,84599.0,0.00738285]
[1744602432362,0.01182,84599.0,84594.0,0.189137]
[1744602432713,0.011819,84606.0,84602.0,0.01182]
[1744602432841,0.011819,84605.0,84602.0,0.01182]
[1744602433043,0.200933,84605.0,84601.0,0.01182]
[1744602433462,0.011819,84604.0,84601.0,0.01182]
[1744602433660,0.011819,84609.0,84601.0,0.01182]
[1744602433661,0.011818,84612.0,84606.0,0.011819]
[1744602433870,0.011818,84614.0,84609.0,0.011819]
[1744602434070,0.416499,84617.0,84614.0,0.189094]
[1744602434274,0.15016,84618.0,84615.0,0.2233639]
[1744602434474,0.416499,84639.0,84635.0,0.189047]
[1744602434679,0.15016,84633.0,84632.0,0.011815]
[1744602435094,0.15016,84633.0,84630.0,0.011816]
[1744602435622,0.011817,84621.0,84590.0,0.1376815]
[1744602435838,0.011817,84621.0,84617.0,0.011817]
[1744602435972,0.011817,84621.0,84618.0,0.011817]
[1744602436372,0.011817,84621.0,84617.0,0.011817]
[1744602436575,0.011817,84620.0,84617.0,0.011817]
[1744602436841,0.011817,84620.0,84610.0,0.011818]
[1744602436842,0.011817,84618.0,84610.0,0.011818]
[1744602437034,0.011818,84615.0,84612.0,0.011818]
[1744602437194,0.011818,84616.0,84613.0,0.011818]
[1744602437437,0.011818,84615.0,84612.0,0.011818]
[1744602438413,0.011817,84618.0,84614.0,0.011818]
[1744602438616,0.011818,84616.0,84612.0,0.012818]
[1744602439019,0.011817,84619.0,84615.0,0.011818]
[1744602440032,0.200902,84618.0,84614.0,0.011818]
[1744602440350,0.011816,84627.0,84622.0,0.189075]
[1744602440558,0.351816,84628.0,84624.0,0.011816]
[1744602440692,0.011816,84624.0,84616.0,0.011818]
[1744602440899,0.011817,84618.0,84615.0,0.001]
[1744602441101,0.189089,84616.0,84615.0,0.001]
[1744602441605,0.354816,84628.0,84617.0,0.011817]
[1744602441843,0.011816,84627.0,84622.0,0.011817]
[1744602442078,0.003,84628.0,84627.0,0.189064]
[1744602442320,0.003,84628.0,84627.0,0.20858616]
[1744602442548,0.00013916,84633.0,84632.0,0.189053]
[1744602442759,0.00013916,84633.0,84632.0,0.30989454]
[1744602442969,0.00013916,84633.0,84632.0,0.32936517]
[1744602444544,0.00213916,84633.0,84632.0,0.32936517]
[1744602445358,0.00213916,84633.0,84632.0,0.01947063]
[1744602445560,0.00213916,84633.0,84632.0,0.20852363]
[1744602445763,0.00213916,84633.0,84632.0,0.189053]
[1744602445878,0.00213916,84633.0,84632.0,0.23165869]
[1744602447641,0.00213916,84633.0,84632.0,0.3548633]
[1744602447850,0.011813,84651.0,84645.0,0.200838]
[1744602447986,0.011813,84648.0,84644.0,0.01613084]
[1744602448188,0.011813,84648.0,84646.0,0.01940947]
[1744602448391,0.189022,84647.0,84645.0,0.03648184]
[1744602448596,0.189022,84647.0,84645.0,0.01706593]
[1744602449021,0.205832,84648.0,84645.0,0.01706593]
[1744602449442,0.005,84648.0,84647.0,0.18902]
[1744602449782,0.005,84648.0,84647.0,0.21223556]
[1744602450201,0.005,84648.0,84647.0,0.02321556]
[1744602450320,0.011813,84650.0,84647.0,0.02321556]
[1744602450750,0.200828,84650.0,84647.0,0.02321556]
[1744602450953,0.189018,84648.0,84647.0,0.02321556]
[1744602451147,0.195018,84648.0,84647.0,0.02321556]
[1744602451378,0.006,84648.0,84647.0,0.02321556]
[1744602451582,0.011813,84650.0,84647.0,0.02321556]
[1744602451796,0.0126562,84653.0,84648.0,0.01706593]
[1744602451797,0.155,84649.0,84648.0,0.01706593]
[1744602453483,0.15,84649.0,84648.0,0.01706593]
[1744602453720,0.14996,84652.0,84651.0,0.189009]
[1744602455594,0.15696,84652.0,84651.0,0.189009]
[1744602456679,0.15696,84652.0,84651.0,0.20830783]
[1744602457055,0.15696,84652.0,84651.0,0.23152339]
[1744602457281,0.14996,84652.0,84651.0,0.23152339]
[1744602457586,0.15096,84652.0,84651.0,0.23152339]
[1744602458661,0.15096,84652.0,84651.0,0.35236493]
[1744602458878,0.001,84652.0,84651.0,0.35236493]
[1744602459039,0.001,84652.0,84651.0,0.35974604]
[1744602459844,0.0008442,84653.0,84651.0,0.36074604]
[1744602460044,0.0008442,84653.0,84652.0,0.13790747]
[1744602460246,0.0008442,84653.0,84652.0,0.1571112]
[1744602460468,0.0008442,84653.0,84652.0,0.16449231]
[1744602461534,0.0008442,84653.0,84652.0,0.16549231]
[1744602465345,0.0008442,84653.0,84652.0,0.02020373]
[1744602466217,0.0008442,84653.0,84652.0,0.001]
[1744602466569,0.0008442,84653.0,84652.0,0.02019414]
[1744602466760,0.0008442,84653.0,84641.0,0.189032]
[1744602466761,0.011814,84645.0,84641.0,0.189032]
[1744602466968,0.011813,84647.0,84642.0,0.011814]
[1744602467166,0.011813,84648.0,84644.0,0.011814]
[1744602467474,0.011813,84648.0,84645.0,0.01921958]
[1744602467677,0.011813,84649.0,84645.0,0.03103358]
[1744602468404,0.011813,84651.0,84648.0,0.011813]
[1744602468600,0.011813,84651.0,84647.0,0.011813]
[1744602468744,0.011813,84651.0,84649.0,0.01922583]
[1744602468942,0.1928522,84653.0,84648.0,0.200831]
[1744602468943,0.0156562,84653.0,84648.0,0.200831]
[1744602469150,0.011813,84652.0,84650.0,0.01922583]
[1744602469368,0.011813,84652.0,84649.0,0.01923013]
[1744602469582,0.011813,84652.0,84651.0,0.01922798]
[1744602469782,0.011813,84652.0,84649.0,0.011813]
[1744602469983,0.0126562,84653.0,84651.0,0.01923013]
[1744602470184,0.0126562,84653.0,84650.0,0.01922798]
[1744602470385,0.0008442,84653.0,84652.0,0.01923013]
[1744602470613,0.0008442,84653.0,84650.0,0.011813]
[1744602470931,0.0008442,84653.0,84651.0,0.01923013]
[1744602471222,0.0038442,84653.0,84651.0,0.01923013]
[1744602471456,0.0038442,84653.0,84651.0,0.189011]
[1744602471639,0.0038442,84653.0,84652.0,0.01923013]
[1744602471846,0.0038442,84653.0,84651.0,0.189011]
[1744602472045,0.0038442,84653.0,84652.0,0.01923013]
[1744602472353,0.0038442,84653.0,84652.0,0.00738198]
[1744602472560,0.0008442,84653.0,84652.0,0.02661425]
[1744602472864,0.0038442,84653.0,84652.0,0.14746893]
[1744602473278,0.0068442,84653.0,84652.0,0.14746893]
[1744602473636,0.0008442,84653.0,84652.0,0.14746893]
[1744602473836,0.0028442,84653.0,84652.0,0.14746893]
[1744602475824,0.0028442,84653.0,84652.0,0.02662739]
[1744602480602,0.0028442,84653.0,84652.0,0.00738198]
[1744602480927,0.0028442,84653.0,84652.0,0.02663383]
[1744602481272,0.0028442,84653.0,84652.0,0.00738198]
[1744602482713,0.0028442,84653.0,84652.0,0.02663183]
[1744602483853,0.0028442,84653.0,84652.0,0.1962359]
[1744602484448,0.0028442,84653.0,84652.0,0.19387337]
[1744602484847,0.0028442,84653.0,84652.0,0.19487337]
[1744602486203,0.0008442,84653.0,84652.0,0.19487337]
[1744602487640,0.00254062,84660.0,84659.0,0.188993]
[1744602487902,0.00013908,84660.0,84659.0,0.34309985]
[1744602488059,0.00013908,84660.0,84659.0,0.34073792]
[1744602488267,0.00013908,84660.0,84659.0,0.3481199]
[1744602488458,0.00013908,84660.0,84659.0,0.3940199]
[1744602490056,0.00113908,84660.0,84659.0,0.3940199]
[1744602491403,0.00113908,84660.0,84659.0,0.3363079]
[1744602491561,0.00113908,84660.0,84659.0,0.1473149]
[1744602491923,0.00113908,84660.0,84659.0,0.02647336]
[1744602492406,0.011812,84653.0,84649.0,0.011813]
[1744602492547,0.20082,84653.0,84647.0,0.01919498]
[1744602492748,0.20082,84653.0,84650.0,0.01912083]
[1744602492958,0.189015,84649.0,84648.0,0.00738198]
[1744602493865,0.011813,84647.0,84644.0,0.01919598]
[1744602494414,0.011813,84647.0,84644.0,0.011814]
[1744602494593,0.011813,84647.0,84640.0,0.011814]
[1744602494594,0.011814,84644.0,84640.0,0.189034]
[1744602494801,0.011813,84646.0,84642.0,0.200844]
[1744602495172,0.011813,84647.0,84643.0,0.011814]
[1744602495966,0.011813,84647.0,84642.0,0.200844]
[1744602496281,0.011813,84647.0,84643.0,0.011814]
[1744602496689,0.011813,84647.0,84641.0,0.011814]
[1744602496690,0.011814,84645.0,84641.0,0.011814]
[1744602496884,0.011814,84642.0,84637.0,0.011815]
[1744602497227,0.011814,84639.0,84635.0,0.200862]